Workbook

Sheet Sheet1
I1: （別紙２）
B2: 受検手数料振込通知書
B4: 宮崎県職業能力開発協会 技能検定課 御中
E6: 監理団体名：
E7: 担当者名：
E8: 電話番号：
B10: 技能検定（随時試験）の受検手数料を下記のとおり振り込みました。
B12: 記
B13: 記入は、企業別、検定作業別、等級別に記入してください。
B14: 受入企業名 | C14: 検定作業名 | D14: 等級 ○で囲む | E14: 受検者数 | G14: 振込金額 | H14: 合計金額 | I14: 振込日
D15: 基礎級 随時３級 随時２級 | E15: 実技試験 | G15: =18200*F15 -> 0 | H15: =SUM(G15:G16) -> 0
E16: 学科試験 | G16: =3100*F16 -> 0
D17: 基礎級 随時３級 随時２級 | E17: 実技試験 | G17: 0 | H17: =SUM(G17:G18) -> 0
E18: 学科試験 | G18: 0
D19: 基礎級 随時３級 随時２級 | E19: 実技試験 | G19: =18200*F19 -> 0 | H19: =SUM(G19:G20) -> 0
E20: 学科試験 | G20: =3100*F20 -> 0
D21: 基礎級 随時３級 随時２級 | E21: 実技試験 | G21: =18200*F21 -> 0 | H21: =SUM(G21:G22) -> 0
E22: 学科試験 | G22: =3100*F22 -> 0
D23: 基礎級 随時３級 随時２級 | E23: 実技試験 | G23: 0 | H23: =SUM(G23:G24) -> 0
E24: 学科試験 | G24: 0
B25: 合 計 | E25: 実技試験 | F25: =SUM(F15,F17,F19,F21,F23) -> 0 | G25: =SUM(G15,G17,G19,G21,G23) -> 0 | H25: =SUM(G25:G26) -> 0
E26: 学科試験 | F26: =SUM(F16,F18,F20,F22,F24) -> 0 | G26: =SUM(G16,G18,G20,G22,G24) -> 0
B27: ※ 色付きの部分は入力する必要はありません。 | D27: 人数は数字のみ記入してください。
B29: 受検手数料振込先
B36: ※ 振込確認（振込日、金額、入金者）ができる書類とともに送付してください。

Sheet 記入例
I1: （別紙２）
B2: 受検手数料振込通知書
B4: 宮崎県職業能力開発協会 技能検定課 御中
E6: 監理団体名： | G6: 宮崎県職業能力開発協会
E7: 担当者名： | G7: 横山富美男
E8: 電話番号： | G8: 0985-58-1570
B10: 技能検定（随時試験）の受検手数料を下記のとおり振り込みました。
B12: 記
B13: 記入は、企業別、検定作業別、等級別に記入してください。
B14: 受入企業名 | C14: 検定作業名 | D14: 等級 ○で囲む | E14: 受検者数 | G14: 振込金額 | H14: 合計金額 | I14: 振込日
B15: 宮崎建築工業 | C15: 大工工事 | D15: 基礎級 随時３級 随時２級 | E15: 実技試験 | F15: 3 | G15: =18200*F15 -> 54,600 | H15: =SUM(G15:G16) -> 63,900 | I15: 2025-10-10
E16: 学科試験 | F16: 3 | G16: =3100*F16 -> 9,300
B17: 宮崎建築工業 | C17: 大工工事 | D17: 基礎級 随時３級 随時２級 | E17: 実技試験 | F17: 2 | G17: 36,400 | H17: =SUM(G17:G18) -> 36,400 | I17: 2025-10-10
E18: 学科試験 | G18: 0
B19: 高鍋板金塗装 | C19: 金属塗装 | D19: 基礎級 随時３級 随時２級 | E19: 実技試験 | F19: 1 | G19: =18200*F19 -> 18,200 | H19: =SUM(G19:G20) -> 21,300 | I19: 2025-10-10
E20: 学科試験 | F20: 1 | G20: =3100*F20 -> 3,100
D21: 基礎級 随時３級 随時２級 | E21: 実技試験 | G21: =18200*F21 -> 0 | H21: =SUM(G21:G22) -> 0
E22: 学科試験 | G22: =3100*F22 -> 0
D23: 基礎級 随時３級 随時２級 | E23: 実技試験 | G23: 0 | H23: =SUM(G23:G24) -> 0
E24: 学科試験 | G24: 0
B25: 合 計 | E25: 実技試験 | F25: =SUM(F15,F17,F19,F21,F23) -> 6 | G25: =SUM(G15,G17,G19,G21,G23) -> 109,200 | H25: =SUM(G25:G26) -> 121,600
E26: 学科試験 | F26: =SUM(F16,F18,F20,F22,F24) -> 4 | G26: =SUM(G16,G18,G20,G22,G24) -> 12,400
E27: 合計 | F27: =SUM(F15:F24) -> 10 | G27: =SUM(G15:G26) -> 243,200 | H27: =SUM(H15:H24) -> 121,600
B28: ※ 色付きの部分は自動で計算されます。人数の欄は数字のみ記入してください。
B30: 受検手数料振込先
B36: ※ 振込確認（振込日、金額、入金者）ができる書類とともに送付してください。
